fUST/lending_fUST_20241109
["ID","MTS","AMOUNT","RATE_DAILY","PERIOD"]
[341700458,1731102639585,-500.0,0.00023837,2]
[341700459,1731102639594,-628.56391685,0.00023837,2]
[341700460,1731102639603,-500.0,0.00023837,2]
[341700461,1731102639616,-427.45792355,0.00023837,2]
[341700462,1731102639625,-417.35145022,0.00023837,2]
[341700463,1731102639634,-416.85288346,0.00023837,2]
[341700464,1731102639643,-500.0,0.00023837,2]
[341700465,1731102639653,-512.19934898,0.00023837,2]
[341700466,1731102639663,-502.9430145,0.00023837,2]
[341700467,1731102639672,-500.0,0.00023837,2]
[341700468,1731102639682,-500.0,0.00023837,2]
[341700469,1731102639691,-500.0,0.00023837,2]
[341700470,1731102639701,-500.0,0.00023837,2]
[341700471,1731102639711,-402.26036887,0.00023837,2]
[341700472,1731102639720,-510.37545968,0.00023837,2]
[341700473,1731102639730,-500.0,0.00023837,2]
[341700474,1731102639739,-500.0,0.00023837,2]
[341700475,1731102639748,-500.0,0.00023837,2]
[341700476,1731102639758,-160.620598,0.00023837,2]
[341700478,1731102639767,-500.0,0.00023837,2]
[341700479,1731102639776,-500.0,0.00023837,2]
[341700480,1731102639785,-500.0,0.00023837,2]
[341700481,1731102639795,-500.0,0.00023837,2]
[341700482,1731102639804,-1330.214932,0.00023993,2]
[341700483,1731102639813,-500.0,0.00024109,2]
[341700484,1731102639822,-500.0,0.00024109,2]
[341700486,1731102639832,-500.0,0.00024111,2]
[341700488,1731102639841,-500.0,0.00024111,2]
[341700489,1731102639850,-500.0,0.00024383,2]
[341700491,1731102639860,-500.0,0.00024383,2]
[341700493,1731102639870,-500.0,0.00024384,2]
[341700495,1731102639879,-500.0,0.00024384,2]
[341700497,1731102639888,-500.0,0.00024384,2]
[341700498,1731102639897,-500.0,0.00024384,2]
[341700499,1731102639910,-500.0,0.00024384,2]
[341700500,1731102639920,-500.0,0.00024384,2]
[341700501,1731102639930,-500.0,0.00024384,2]
[341700502,1731102639939,-500.0,0.00024384,2]
[341700503,1731102639951,-158.61510773,0.00024384,2]
[341700504,1731102639961,-500.0,0.00024384,2]
[341700505,1731102639970,-630.46633587,0.00024384,2]
[341700506,1731102639979,-500.0,0.00024385,2]
[341700507,1731102639988,-166.886877,0.00024482,2]
[341700508,1731102639998,-256.70924809,0.00024621,2]
[341700509,1731102640008,-1000.0,0.00024631,2]
[341700510,1731102640017,-168.8145907,0.00024636,2]
[341700511,1731102640027,-500.0,0.00024657,2]
[341700512,1731102640037,-167.73488846,0.00024657,2]
[341700514,1731102640046,-380.0,0.00024658,2]
[341700516,1731102640056,-348.58427404,0.00024658,2]
[341700518,1731102640065,-500.0,0.00024658,2]
[341700519,1731102640075,-500.0,0.00024659,2]
[341700520,1731102640084,-500.0,0.00024677,2]
[341700521,1731102640093,-1330.214932,0.00024678,2]
[341700522,1731102640103,-587.0,0.00024847,2]
[341700523,1731102640112,-500.0,0.00024931,2]
[341700524,1731102640122,-500.0,0.00024933,2]
[341700525,1731102640132,-1000.0,0.0002507,2]
[341700526,1731102640141,-500.0,0.00025205,2]
[341700527,1731102640151,-500.0,0.00025207,2]
[341700528,1731102640161,-1330.214932,0.00025363,2]
[341700529,1731102640171,-500.0,0.00025479,2]
[341700530,1731102640181,-500.0,0.00025481,2]
[341700531,1731102640190,-465.4688816,0.00025508,2]
[341700532,1731102640199,-500.0,0.0002572,2]
[341700533,1731102640208,-506.43376472,0.0002572,2]
[341700534,1731102640218,-500.0,0.0002572,2]
[341700535,1731102640227,-500.0,0.0002572,2]
[341700536,1731102640236,-500.0,0.0002572,2]
[341700537,1731102640245,-500.0,0.0002572,2]
[341700538,1731102640254,-500.0,0.0002572,2]
[341700539,1731102640264,-500.0,0.00025753,2]
[341700540,1731102640274,-213.62999999,0.00025755,2]
[341700541,1731102640283,-500.0,0.00025994,2]
[341700542,1731102640292,-500.0,0.00025994,2]
[341700543,1731102640301,-500.0,0.00025994,2]
[341700544,1731102640311,-594.0066373,0.00026027,2]
[341700545,1731102640320,-379.88721332,0.00026039,2]
[341700546,1731102640329,-500.0,0.00026268,2]
[341700547,1731102640338,-500.0,0.00026268,2]
[341700548,1731102640347,-500.0,0.00026542,2]
[341700549,1731102640356,-400.89,0.00026542,2]
[341700550,1731102640366,-500.0,0.00026816,2]
[341700551,1731102640376,-823.0,0.00027028,2]
[341700552,1731102640385,-500.0,0.0002709,2]
[341700553,1731102640394,-500.0,0.00027135,2]
[341700554,1731102640403,-500.0,0.00027135,2]
[341700555,1731102640412,-500.0,0.00027135,2]
[341700556,1731102640421,-500.0,0.00027135,2]
[341700557,1731102640431,-500.0,0.00027135,2]
[341700558,1731102640439,-500.0,0.00027135,2]
[341700559,1731102640448,-500.0,0.00027135,2]
[341700560,1731102640457,-500.0,0.00027135,2]
[341700561,1731102640466,-500.08458129,0.00027135,2]
[341700562,1731102640475,-500.0,0.00027135,2]
[341700563,1731102640485,-500.0,0.00027135,2]
[341700564,1731102640494,-551.7239973,0.00027135,2]
[341700565,1731102640503,-500.0,0.00027135,2]
[341700566,1731102640512,-500.0,0.00027135,2]
[341700567,1731102640520,-500.0,0.00027135,2]
[341700568,1731102640530,-500.0,0.00027135,2]
[341700569,1731102640543,-500.0,0.00027135,2]
[341700570,1731102640554,-500.0,0.00027135,2]
[341700571,1731102640563,-500.0,0.00027135,2]
[341700572,1731102640572,-500.0,0.00027135,2]
[341700573,1731102640582,-500.0,0.00027135,2]
[341700574,1731102640592,-500.0,0.00027135,2]
[341700575,1731102640603,-500.0,0.00027135,2]
[341700576,1731102640613,-500.0,0.00027135,2]
[341700577,1731102640623,-527.6691004,0.00027135,2]
[341700578,1731102640632,-500.0,0.00027135,2]
[341700579,1731102640641,-632.75545888,0.00027135,2]
[341700580,1731102640651,-500.0,0.00027135,2]
[341700581,1731102640660,-500.0,0.00027135,2]
[341700582,1731102640669,-500.0,0.00027135,2]
[341700583,1731102640678,-500.0,0.00027135,2]
[341700584,1731102640688,-500.0,0.00027135,2]
[341700585,1731102640697,-500.0,0.00027135,2]
[341700586,1731102640708,-500.0,0.00027135,2]
[341700587,1731102640719,-500.0,0.00027135,2]
[341700588,1731102640729,-500.0,0.00027135,2]
[341700589,1731102640739,-500.0,0.00027135,2]
[341700590,1731102640748,-500.0,0.00027135,2]
[341700591,1731102640758,-500.0,0.00027135,2]
[341700592,1731102640767,-500.0,0.00027135,2]
[341700593,1731102640776,-500.0,0.00027135,2]
[341700594,1731102640786,-500.0,0.00027135,2]
[341700595,1731102640795,-500.0,0.00027135,2]
[341700596,1731102640914,-500.0,0.00027135,2]
[341700597,1731102640925,-500.0,0.00027135,2]
[341700598,1731102640936,-500.0,0.00027135,2]
[341700599,1731102640947,-500.0,0.00027135,2]
[341700600,1731102640958,-500.0,0.00027135,2]
[341700601,1731102640968,-500.0,0.00027135,2]
[341700602,1731102640977,-500.0,0.00027135,2]
[341700603,1731102640987,-500.0,0.00027135,2]
[341700604,1731102640996,-500.0,0.00027135,2]
[341700605,1731102641006,-500.0,0.00027135,2]
[341700606,1731102641015,-500.0,0.00027135,2]
[341700607,1731102641025,-500.0,0.00027135,2]
[341700608,1731102641035,-307.33876454,0.00027135,2]
[341700609,1731102641045,-500.0,0.00027135,2]
[341700610,1731102641056,-500.0,0.00027135,2]
[341700611,1731102641065,-500.0,0.00027135,2]
[341700612,1731102641075,-500.0,0.00027135,2]
[341700613,1731102641085,-500.0,0.00027135,2]
[341700614,1731102641094,-500.0,0.00027135,2]
[341700615,1731102641104,-500.0,0.00027135,2]
[341700616,1731102641113,-500.0,0.00027135,2]
[341700617,1731102641124,-500.0,0.00027135,2]
[341700618,1731102641133,-500.0,0.00027135,2]
[341700619,1731102641142,-500.0,0.00027135,2]
[341700620,1731102641152,-500.0,0.00027135,2]
[341700621,1731102641161,-500.0,0.00027135,2]
[341700622,1731102641170,-500.0,0.00027135,2]
[341700623,1731102641179,-500.0,0.00027135,2]
[341700624,1731102641189,-500.0,0.00027135,2]
[341700625,1731102641198,-470.8732337,0.00027136,2]
[341700626,1731102641207,-500.0,0.00027364,2]
[341700627,1731102641216,-412.19429021,0.00027397,2]
[341700628,1731102641225,-379.88721328,0.00027437,2]
[341700629,1731102641235,-1045.04792483,0.00027575,2]
[341700630,1731102641244,-500.0,0.00027638,2]
[341700631,1731102641254,-458.03703064,0.00027912,2]
[341700632,1731102641263,-379.88721328,0.00028835,2]
[341700633,1731102641272,-529.0,0.00029094,2]
[341700634,1731102641282,-1135.0,0.00029094,2]
[341700635,1731102641291,-2393.0,0.00029094,2]
[341700636,1731102641299,-20196.4331877,0.000298,3]
[341700637,1731102641309,-182.49782933,0.00029999,2]
[341700638,1731102641319,-243.56673866,0.00029999,2]
[341700639,1731102641328,-500.0,0.00029999,2]
[341700640,1731102641337,-500.0,0.00029999,2]
[341700641,1731102641346,-500.0,0.00029999,2]
[341700642,1731102641355,-500.0,0.00029999,2]
[341700643,1731102641364,-177.33580799,0.00029999,2]
[341700644,1731102641373,-185.78442078,0.00029999,2]
[341700645,1731102641382,-500.0,0.00029999,2]
[341700646,1731102641391,-500.0,0.00029999,2]
[341700647,1731102641400,-500.0,0.00029999,2]
[341700648,1731102641410,-500.0,0.00029999,2]
[341700649,1731102641420,-500.0,0.00029999,2]
[341700650,1731102641430,-500.0,0.00029999,2]
[341700651,1731102641440,-500.0,0.00029999,2]
[341700652,1731102641451,-447.23674591,0.00029999,2]
[341700653,1731102641460,-500.0,0.00029999,2]
[341700654,1731102641470,-463.06572214,0.00029999,2]
[341700655,1731102641480,-857.59,0.0003,2]
[341700656,1731102641490,-208736.68956155,0.0003,2]
[341700657,1731102641499,-312.0,0.0003,2]
[341700658,1731102641510,-871.875925,0.00030115,2]
[341700659,1731102641521,-500.0,0.00030136,7]
[341700660,1731102641531,-234.66412096,0.00030137,2]
[341700661,1731102641544,-379.88721328,0.00030233,2]
[341700662,1731102641554,-772.0,0.000307,2]
[341700663,1731102641564,-158.52871975,0.00030774,2]
[341700664,1731102641574,-4528.35,0.00030957,120]
[341700665,1731102641584,-1000.0,0.00030958,14]
[341700666,1731102641593,-1000.0,0.00030958,14]
[341700667,1731102641602,-1000.0,0.00030958,14]
[341700668,1731102641613,-461.49926671,0.00030958,14]
[341700669,1731102641623,-159.128,0.0003113,10]
[341700670,1731102641632,-500.0,0.00031232,10]
[341700671,1731102641643,-814.59975385,0.000315,20]
[341700672,1731102641653,-167.852941,0.00031546,2]
[341700673,1731102641662,-1000.0,0.00031631,2]
[341700674,1731102641671,-379.88721328,0.00031631,2]
[341700675,1731102641680,-500.0,0.00031658,120]
[341700676,1731102641690,-758.0,0.00031658,120]
[341700677,1731102641701,-500.0,0.000317,37]
[341700678,1731102641710,-3000.0,0.00031716,2]
[341700679,1731102641721,-600.0,0.00031728,2]
[341700680,1731102641731,-2544.51945906,0.00031731,4]
[341700681,1731102641741,-231.18214781,0.00031731,7]
[341700682,1731102641750,-231.18214781,0.00031731,7]
[341700683,1731102641759,-66530.86488547,0.00031731,10]
[341700684,1731102641826,-2126.08031411,0.00031731,10]
[341700685,1731102641843,-500.0,0.00021917,2]
[341700686,1731102641853,-19588.7583929,0.00031731,10]
[341700687,1731102641960,-502.71213366,0.00027135,2]
[341700688,1731102641970,-22452.88786634,0.00031731,10]
[341700719,1731102646549,-256.70924809,0.00026023,2]
[341700720,1731102646559,-1415.09446,0.000316,7]
[341700721,1731102646569,-1000.0,0.00031631,2]
[341700722,1731102646579,-531.29,0.00031721,10]
[341700723,1731102646589,-4441.16890896,0.00031731,10]
[341700725,1731102883820,694.44444444,0.00020843,2]
[341700726,1731102968964,168.733424,0.00013973,2]
[341700730,1731103195625,694.44444444,0.00020843,2]
[341700732,1731103506318,694.44444444,0.00020843,2]
[341700733,1731103522418,151.72230327,0.00020801,2]
[341700746,1731103818052,694.44444444,0.00020843,2]
[341700774,1731103832612,-258.6373018,0.00020999,2]
[341700776,1731103832622,-500.0,0.00021917,2]
[341700778,1731103832632,-502.07543091,0.00021917,2]
[341700781,1731103832642,-500.0,0.00021917,2]
[341700783,1731103832651,-694.44444444,0.00022041,2]
[341700785,1731103832661,-182.87639263,0.00025545,2]
[341700787,1731103832673,-475.28860737,0.00025545,2]
[341700789,1731103832682,-300.0,0.00027656,2]
[341700791,1731103832692,-300.0,0.00027656,2]
[341700793,1731103832702,-500.0,0.00027657,2]
[341700795,1731103832711,-2129.70035696,0.00027658,2]
[341700836,1731103838939,-22770.29964304,0.00027658,2]
[341700837,1731103838949,-1214.3883261,0.00028175,2]
[341700838,1731103838959,-166.666666,0.00028322,2]
[341700839,1731103838970,-665.107466,0.00028621,2]
[341700840,1731103838980,-250.0,0.00029094,2]
[341700841,1731103838989,-1132.0,0.00029094,2]
[341700842,1731103838998,-529.0,0.00029094,2]
[341700843,1731103839007,-2392.0,0.00029094,2]
[341700844,1731103839017,-166.666666,0.00029094,2]
[341700845,1731103839026,-665.107466,0.00029306,2]
[341700846,1731103839035,-168.733424,0.00029349,2]
[341700847,1731103839044,-166.666666,0.00029867,2]
[341700848,1731103839053,-420.0,0.00029879,2]
[341700849,1731103839063,-151.95488532,0.000299,2]
[341700850,1731103839073,-676.5,0.0002999,10]
[341700851,1731103839083,-563.75,0.0002999,10]
[341700852,1731103839092,-665.107466,0.00029991,2]
[341700853,1731103839101,-482.61055711,0.0003,2]
[341700875,1731103843701,-1191.84999999,0.0003,2]
[341700876,1731103843712,-2272.87423982,0.0003,2]
[341700877,1731103843724,-11022.72715713,0.0003,2]
[341700878,1731103843735,-18052.44137298,0.0003,2]
[341700893,1731103954979,168.476836,0.00013973,2]
[341700896,1731104101099,1557.0,0.0002,2]
[341700897,1731104136167,694.44444444,0.00020843,2]
[341700899,1731104448774,694.44444444,0.00020843,2]
[341700911,1731104761259,694.44444444,0.00020843,2]
[341700913,1731104775026,168.029548,0.00013973,2]
[341700925,1731104900237,185.86634559,0.000123,2]
[341700926,1731104923187,14606.29979455,0.00020377,2]
[341700928,1731104927648,561.16683548,0.000149,2]
[341700990,1731105031786,-694.44444444,0.00021058,2]
[341700992,1731105031795,-165.18922581,0.000249,2]
[341700994,1731105031806,-300.0,0.00024999,2]
[341700996,1731105031815,-300.0,0.00024999,2]
[341700998,1731105031824,-10327.49784436,0.00025,2]
[341701000,1731105031835,-722.59937,0.00025,2]
[341701002,1731105031847,-650.0,0.00025,2]
[341701007,1731105031912,-4815.94238348,0.00025,2]
[341701040,1731105037807,-919.84939522,0.00025,2]
[341701042,1731105037816,-1046.88257089,0.00025,2]
[341701044,1731105037826,-165.37396881,0.00025,2]
[341701046,1731105037836,-203.2820143,0.00025,2]
[341701048,1731105037845,-509.54966786,0.00025,2]
[341701050,1731105037854,-1366.30128896,0.00025,2]
[341701052,1731105037863,-945.6613043,0.00025206,2]
[341701054,1731105037872,-176.206264,0.00025237,2]
[341701056,1731105037881,-270.418398,0.00025648,2]
[341701058,1731105037891,-270.62525,0.00025836,2]
[341701060,1731105037900,-847.1057274,0.00025848,2]
[341701068,1731105037972,-354.4009416,0.00025848,2]
[341701070,1731105037981,-301.8452991,0.00026071,2]
[341701072,1731105037990,-176.206264,0.00026384,2]
[341701074,1731105037999,-32.22881509,0.00026533,2]
[341701075,1731105038011,-1169.27785391,0.00026533,2]
[341701076,1731105038020,-1007.3167114,0.00026831,2]
[341701077,1731105038028,-420.0,0.00027082,2]
[341701078,1731105038037,-1201.506669,0.00027218,2]
[341701079,1731105038046,-500.0,0.00027455,2]
[341701080,1731105038056,-470.8732337,0.00027455,5]
[341701081,1731105038065,-420.0,0.00027499,2]
[341701082,1731105038073,-176.206264,0.0002753,2]
[341701083,1731105038082,-255.78117144,0.00027655,2]
[341701084,1731105038091,-500.0,0.00027655,2]
[341701085,1731105038100,-410.990485,0.00027656,2]
[341701086,1731105038108,-500.0,0.00027656,2]
[341701087,1731105038117,-500.0,0.00027656,2]
[341701088,1731105038127,-501.72671402,0.00027656,2]
[341701089,1731105038135,-500.0,0.00027656,2]
[341701090,1731105038144,-500.0,0.00027656,2]
[341701091,1731105038153,-500.0,0.00027656,2]
[341701092,1731105038162,-512.47080336,0.00027656,2]
[341701093,1731105038171,-500.0,0.00027656,2]
[341701094,1731105038180,-500.0,0.00027656,2]
[341701095,1731105038188,-500.0,0.00027656,2]
[341701096,1731105038197,-500.0,0.00027656,2]
[341701097,1731105038206,-502.5763128,0.00027656,2]
[341701098,1731105038214,-500.0,0.00027656,2]
[341701099,1731105038223,-500.0,0.00027656,2]
[341701100,1731105038232,-500.0,0.00027656,2]
[341701101,1731105038241,-500.0,0.00027656,2]
[341701115,1731105038389,-500.0,0.00027656,2]
[341701117,1731105038402,-500.0,0.00027656,2]
[341701119,1731105038411,-500.0,0.00027656,2]
[341701121,1731105038421,-500.0,0.00027656,2]
[341701123,1731105038430,-1000.0,0.00027656,2]
[341701125,1731105038439,-500.0,0.00027656,2]
[341701127,1731105038448,-500.0,0.00027656,2]
[341701129,1731105038457,-543.87,0.00027656,2]
[341701131,1731105038466,-495.4691693,0.00027656,2]
[341701133,1731105038475,-500.0,0.00027656,2]
[341701135,1731105038484,-500.0,0.00027656,2]
[341701137,1731105038493,-500.0,0.00027656,2]
[341701139,1731105038503,-500.0,0.00027656,2]
[341701141,1731105038513,-500.0,0.00027656,2]
[341701143,1731105038522,-500.0,0.00027657,2]
[341701145,1731105038531,-500.0,0.00027657,2]
[341701147,1731105038540,-500.0,0.00027657,2]
[341701149,1731105038549,-500.0,0.00027657,2]
[341701151,1731105038560,-500.0,0.00027657,2]
[341701153,1731105038569,-500.0,0.00027657,2]
[341701155,1731105038578,-500.0,0.00027657,2]
[341701157,1731105038587,-500.0,0.00027657,2]
[341701159,1731105038597,-500.0,0.00027657,2]
[341701161,1731105038606,-500.0,0.00027657,2]
[341701163,1731105038615,-500.0,0.00027657,2]
[341701165,1731105038624,-500.0,0.00027657,2]
[341701166,1731105038633,-500.0,0.00027657,2]
[341701167,1731105038643,-500.0,0.00027657,2]
[341701168,1731105038652,-500.0,0.00027657,2]
[341701169,1731105038661,-500.0,0.00027657,2]
[341701170,1731105038670,-500.0,0.00027657,2]
[341701171,1731105038679,-500.0,0.00027657,2]
[341701172,1731105038688,-500.0,0.00027657,2]
[341701173,1731105038696,-500.0,0.00027657,2]
[341701174,1731105038706,-500.0,0.00027657,2]
[341701175,1731105038716,-500.0,0.00027657,2]
[341701176,1731105038725,-500.0,0.00027657,2]
[341701177,1731105038734,-500.0,0.00027657,2]
[341701178,1731105038743,-500.0,0.00027657,2]
[341701179,1731105038752,-500.0,0.00027657,2]
[341701180,1731105038762,-500.0,0.00027657,2]
[341701181,1731105038771,-500.0,0.00027657,2]
[341701182,1731105038780,-500.0,0.00027657,2]
[341701183,1731105038789,-505.49586885,0.00027657,2]
[341701184,1731105038799,-508.47140266,0.00027657,2]
[341701185,1731105038809,-500.0,0.00027657,2]
[341701186,1731105038818,-500.0,0.00027657,2]
[341701187,1731105038827,-500.0,0.00027657,2]
[341701188,1731105038837,-500.0,0.00027657,2]
[341701189,1731105038846,-151.32,0.0002793,2]
[341701190,1731105038856,-587.38780783,0.000286,5]
[341701191,1731105038866,-229.80432334,0.00028616,2]
[341701192,1731105038875,-176.206264,0.00028677,2]
[341701193,1731105038884,-545.04792483,0.00028824,2]
[341701194,1731105038893,-500.79655364,0.00029069,5]
[341701195,1731105038903,-171.13949872,0.00029186,2]
[341701196,1731105038915,-7949.73128653,0.00029249,2]
[341701197,1731105038925,-196.0,0.00029339,2]
[341701198,1731105038934,-168.029548,0.00029349,2]
[341701199,1731105038944,-7949.73128653,0.00029455,2]
[341701200,1731105038953,-159.113,0.0002946,10]
[341701201,1731105038962,-7949.73128653,0.0002968,2]
[341701202,1731105038971,-467.85151136,0.00029898,2]
[341701203,1731105038981,-500.0,0.00029973,5]
[341701204,1731105038990,-469.8,0.00029987,10]
[341701205,1731105038999,-391.5,0.00029987,10]
[341701206,1731105039009,-555.64953477,0.00029996,2]
[341701207,1731105039018,-500.0,0.00029996,2]
[341701208,1731105039027,-292.77531584,0.00029996,2]
[341701209,1731105039036,-500.0,0.00029996,2]
[341701210,1731105039045,-339.61490566,0.00029996,2]
[341701211,1731105039054,-500.0,0.00029996,2]
[341701212,1731105039063,-412.19429021,0.00029996,2]
[341701213,1731105039072,-500.0,0.00029996,2]
[341701214,1731105039081,-186.44683261,0.00029996,2]
[341701215,1731105039092,-500.0,0.00029996,2]
[341701216,1731105039101,-500.0,0.00029996,2]
[341701217,1731105039110,-500.0,0.00029996,2]
[341701218,1731105039122,-500.0,0.00029996,2]
[341701219,1731105039131,-500.0,0.00029996,2]
[341701220,1731105039142,-500.0,0.00029996,2]
[341701221,1731105039151,-500.0,0.00029996,2]
[341701222,1731105039160,-500.0,0.00029996,2]
[341701223,1731105039170,-500.0,0.00029996,2]
[341701224,1731105039179,-163.04575352,0.00029996,2]
[341701225,1731105039188,-500.0,0.00029996,2]
[341701226,1731105039198,-500.0,0.00029996,2]
[341701227,1731105039207,-500.0,0.00029996,2]
[341701228,1731105039216,-500.0,0.00029996,2]
[341701229,1731105039226,-500.0,0.00029996,2]
[341701230,1731105039235,-500.0,0.00029996,2]
[341701231,1731105039245,-500.0,0.00029996,2]
[341701232,1731105039254,-500.0,0.00029996,2]
[341701233,1731105039263,-500.0,0.00029996,2]
[341701234,1731105039273,-500.0,0.00029996,2]
[341701236,1731105039282,-500.0,0.00029996,2]
[341701238,1731105039291,-500.0,0.00029996,2]
[341701239,1731105039307,-500.0,0.00029996,2]
[341701241,1731105039316,-500.0,0.00029996,2]
[341701243,1731105039325,-500.0,0.00029996,2]
[341701245,1731105039335,-500.0,0.00029996,2]
[341701246,1731105039345,-500.0,0.00029996,2]
[341701247,1731105039354,-500.0,0.00029996,2]
[341701248,1731105039363,-500.0,0.00029996,2]
[341701249,1731105039374,-500.0,0.00029996,2]
[341701250,1731105039383,-500.0,0.00029996,2]
[341701251,1731105039392,-199.0111398,0.00029996,2]
[341701252,1731105039401,-500.0,0.00029996,2]
[341701253,1731105039410,-500.0,0.00029996,2]
[341701254,1731105039419,-388.75552156,0.00029996,2]
[341701257,1731105039809,-111.24447844,0.00029996,2]
[341701258,1731105039819,-500.0,0.00029998,2]
[341701259,1731105039828,-388.75552156,0.00029998,2]
[341701260,1731105039839,-111.24447844,0.00029998,2]
[341701261,1731105039849,-290.09765155,0.00029998,2]
[341701262,1731105039861,-209.90234845,0.00029998,2]
[341701263,1731105039871,-500.0,0.00029998,2]
[341701264,1731105039880,-500.0,0.00029998,2]
[341701265,1731105039890,-503.62438651,0.00029998,2]
[341701266,1731105039899,-501.45061328,0.00029998,2]
[341701267,1731105039909,-500.0,0.00029998,2]
[341701268,1731105039918,-517.91903389,0.00029998,2]
[341701269,1731105039928,-500.0,0.00029998,2]
[341701270,1731105039937,-500.0,0.00029998,2]
[341701271,1731105039947,-500.0,0.00029998,2]
[341701272,1731105039956,-503.23033688,0.00029998,2]
[341701273,1731105039965,-500.0,0.00029998,2]
[341701274,1731105039975,-504.26837411,0.00029998,2]
[341701275,1731105039984,-500.0,0.00029998,2]
[341701276,1731105039993,-506.13195398,0.00029998,2]
[341701277,1731105040003,-199.39217697,0.00029998,2]
[341701293,1731105043050,-326.25,0.0002999,10]
[341701294,1731105043061,-300.60782303,0.00029998,2]
[341701295,1731105043071,-500.0,0.00029998,2]
[341701296,1731105043080,-500.0,0.00029998,2]
[341701297,1731105043089,-552.45243695,0.00029998,2]
[341701298,1731105043098,-500.0,0.00029998,2]
[341701299,1731105043108,-500.0,0.00029998,2]
[341701300,1731105043118,-500.0,0.00029998,2]
[341701301,1731105043127,-506.46186259,0.00029998,2]
[341701302,1731105043137,-506.41637395,0.00029998,2]
[341701303,1731105043147,-500.0,0.00029998,2]
[341701304,1731105043156,-500.0,0.00029998,2]
[341701305,1731105043165,-500.0,0.00029998,2]
[341701306,1731105043176,-500.0,0.00029998,2]
[341701307,1731105043185,-500.0,0.00029998,2]
[341701308,1731105043195,-200.0,0.00029998,2]
[341701309,1731105043204,-500.0,0.00029998,2]
[341701310,1731105043213,-636.18774139,0.00029998,2]
[341701311,1731105043223,-500.0,0.00029998,2]
[341701312,1731105043232,-513.52523236,0.00029998,2]
[341701313,1731105043242,-412.8549594,0.00029998,2]
[341701320,1731105046068,-87.1450406,0.00029998,2]
[341701322,1731105046078,-412.8549594,0.00029998,2]
[341701329,1731105075572,694.44444444,0.00020843,2]
[341701351,1731105387338,694.44444444,0.00020843,2]
[341701353,1731105476369,167.97779,0.00013973,2]
[341701355,1731105699470,694.44444444,0.00020843,2]
[341701357,1731106011713,694.44444444,0.00020843,2]
[341701435,1731106232289,-406.48081017,0.00023057,2]
[341701436,1731106232301,-287.96363427,0.00023057,2]
[341701437,1731106232311,-4198.1892624,0.00026075,2]
[341701438,1731106232320,-300.0,0.00026379,2]
[341701439,1731106232330,-300.0,0.00026379,2]
[341701440,1731106232339,-500.0,0.0002638,2]
[341701441,1731106232348,-594.0066373,0.0002638,2]
[341701442,1731106232357,-500.0,0.0002638,2]
[341701443,1731106232366,-500.0,0.0002638,2]
[341701444,1731106232375,-507.01974075,0.0002638,2]
[341701445,1731106232383,-491.13386687,0.0002638,2]
[341701446,1731106232392,-500.0,0.0002638,2]
[341701447,1731106232401,-500.0,0.0002638,2]
[341701448,1731106232410,-500.0,0.0002638,2]
[341701449,1731106232419,-500.0,0.0002638,2]
[341701450,1731106232428,-500.0,0.0002638,2]
[341701451,1731106232437,-500.0,0.0002638,2]